bitfinex-derivatives/quotes_ETHF0:USTF0_20230105
["timestamp","ask_amount","ask_price","bid_price","bid_amount"]
[1672929293670,5.7078,1248.0,1247.6,15.50733637]
[1672929294307,5.7078,1248.0,1247.6,13.70960996]
[1672929294627,3.2078,1248.0,1247.6,15.50733637]
[1672929294841,5.7078,1248.0,1247.6,15.50733637]
[1672929296204,3.2078,1248.0,1247.6,15.50733637]
[1672929296421,2.5,1248.1,1247.6,17.90394254]
[1672929296632,7.9829775,1248.2,1247.6,17.90394254]
[1672929296843,4.3892,1248.2,1247.8,3.2078]
[1672929297048,3.2078,1248.2,1247.9,2.5]
[1672929297475,9.3015775,1248.2,1247.9,2.5]
[1672929297685,5.7078,1248.2,1247.9,2.5]
[1672929299261,9.3015775,1248.2,1247.9,2.5]
[1672929299784,5.7078,1248.2,1247.9,2.5]
[1672929299994,3.2078,1248.2,1247.9,2.5]
[1672929301043,2.5,1248.1,1247.8,10.505]
[1672929301256,2.5,1248.1,1247.8,2.5]
[1672929301465,2.5,1247.9,1247.8,2.5]
[1672929301985,2.5,1248.1,1247.8,2.5]
[1672929304614,3.2078,1248.0,1247.8,2.5]
[1672929304830,2.5,1247.9,1247.8,2.5]
[1672929305347,5.7078,1248.2,1247.8,2.5]
[1672929305564,3.2078,1248.2,1247.8,13.7128]
[1672929310081,3.2078,1248.2,1247.8,5.7078]
[1672929310500,3.2078,1248.2,1247.8,2.5]
[1672929310715,3.2078,1248.0,1247.8,2.5]
[1672929311654,3.20385219,1248.0,1247.8,2.5]
[1672929313131,2.5,1247.9,1247.8,2.5]
[1672929313344,2.5,1247.9,1247.7,2.5]
[1672929315544,3.20385219,1248.0,1247.7,2.5]
[1672929316383,3.20385219,1248.0,1247.7,4.29772641]
[1672929316803,3.20385219,1248.0,1247.7,2.5]
[1672929317646,3.20385219,1248.0,1247.7,4.29772641]
[1672929320794,2.5,1247.9,1247.7,4.29772641]
[1672929321220,2.5,1247.9,1247.7,2.5]
[1672929322698,2.5,1247.9,1247.7,4.29772641]
[1672929323001,6.8015775,1248.0,1247.7,4.29772641]
[1672929323207,3.2078,1248.0,1247.7,4.29772641]
[1672929323422,2.5,1247.9,1247.7,4.29772641]
[1672929323633,6.8015775,1248.0,1247.7,4.29772641]
[1672929323843,6.8015775,1248.0,1247.7,12.30272641]
[1672929324055,3.2078,1248.0,1247.8,1.79772641]
[1672929324469,3.2078,1248.0,1247.9,2.5]
[1672929326155,3.2078,1248.0,1247.8,9.80272641]
[1672929326366,9.3015775,1248.0,1247.9,2.5]
[1672929326998,9.3015775,1248.0,1247.8,1.79772641]
[1672929327312,9.3015775,1248.0,1247.9,2.5]
[1672929327522,9.3015775,1248.0,1247.7,4.29772641]
[1672929327731,2.5,1247.9,1247.7,4.29772641]
[1672929327938,3.2078,1247.8,1247.6,6.69114254]
[1672929328154,1.5,1247.7,1247.6,1.79772641]
[1672929328359,1.5,1247.7,1247.5,6.69433258]
[1672929328566,1.5,1247.7,1247.5,4.29772641]
[1672929328777,1.5,1247.7,1247.6,2.5]
[1672929329408,1.5,1247.7,1247.5,6.69433258]
[1672929329620,1.5,1247.7,1247.5,4.29772641]
[1672929330249,1.5,1247.7,1247.5,1.79772641]
[1672929330455,1.5,1247.7,1247.4,4.19433258]
[1672929330890,2.5,1247.5,1247.4,2.39660617]
[1672929331202,1.5,1247.7,1247.4,6.31756229]
[1672929331411,1.5,1247.7,1247.6,2.5]
[1672929332469,1.5,1247.7,1247.5,4.30085491]
[1672929333206,3.2078,1247.6,1247.4,1.80085491]
[1672929333626,2.5,1247.5,1247.3,4.19746108]
[1672929333838,2.5,1247.5,1247.3,1.80085491]
[1672929334145,2.5,1247.5,1247.2,1.80085491]
[1672929334779,2.5,1247.5,1247.2,4.30085491]
[1672929334986,3.2078,1247.4,1247.2,1.80085491]
[1672929335305,2.5,1247.3,1247.2,4.30085491]
[1672929336252,3.2078,1247.4,1247.2,3.69822359]
[1672929336462,3.2078,1247.4,1247.2,1.19822359]
[1672929336776,3.2078,1247.4,1247.1,2.9990785]
[1672929336980,2.5,1247.3,1247.1,2.5]
[1672929337190,3.2078,1247.2,1247.1,2.5]
[1672929338551,3.2078,1247.4,1247.1,2.5]
[1672929338976,2.5,1247.3,1247.1,2.5]
[1672929339190,3.2078,1247.4,1247.1,8.7068785]
[1672929339613,2.5,1247.3,1247.1,3.69822359]
[1672929340029,2.5,1247.5,1247.1,8.7068785]
[1672929340239,2.5,1247.5,1247.1,3.69822359]
[1672929340455,2.5,1247.3,1247.1,2.5]
[1672929340666,2.5,1247.3,1247.1,3.69822359]
[1672929340877,3.2078,1247.4,1247.1,3.69822359]
[1672929341298,3.2078,1247.4,1247.1,6.90602359]
[1672929341823,3.2078,1247.4,1247.1,2.5]
[1672929342245,3.2078,1247.4,1247.1,3.69822359]
[1672929344030,3.2078,1247.4,1247.1,2.5]
[1672929344446,3.2078,1247.4,1247.1,3.69822359]
[1672929345186,3.2078,1247.4,1247.1,6.90602359]
[1672929346234,5.7078,1247.6,1247.1,8.7068785]
[1672929346554,5.7078,1247.6,1247.3,2.5]
[1672929348121,5.7078,1247.6,1247.1,6.90602359]
[1672929349707,5.7078,1247.6,1247.1,8.7068785]
[1672929350226,5.7078,1247.6,1247.1,6.90602359]
[1672929353588,3.2078,1247.4,1247.1,6.90602359]
[1672929353905,2.5,1247.3,1247.1,2.5]
[1672929354119,3.2078,1247.4,1247.1,2.5]
[1672929354320,3.2078,1247.4,1247.1,3.69822359]
[1672929354854,3.2078,1247.4,1247.1,6.90602359]
[1672929355792,3.2078,1247.4,1247.1,8.7068785]
[1672929356319,3.2078,1247.4,1247.1,6.90602359]
[1672929356746,3.2078,1247.5,1247.1,3.69822359]
[1672929356954,2.5,1247.4,1247.1,3.69822359]
[1672929357796,2.5,1247.4,1247.1,5.4990785]
[1672929358006,2.5,1247.4,1247.1,3.69822359]
[1672929359894,2.5,1247.4,1247.1,5.4990785]
[1672929360104,2.5,1247.4,1247.1,3.69822359]
[1672929361157,3.2078,1247.3,1247.1,3.69822359]
[1672929361471,2.5,1247.2,1247.1,2.5]
[1672929361894,3.2078,1247.3,1247.1,2.5]
[1672929362106,3.2078,1247.3,1247.1,3.69822359]
[1672929362942,2.5,1247.4,1247.1,3.69822359]
[1672929363474,2.5,1247.4,1247.1,2.5]
[1672929363888,2.5,1247.4,1247.1,3.69822359]
[1672929364308,2.5,1247.2,1247.1,1.19822359]
[1672929364519,2.5,1247.2,1247.0,10.57652273]
[1672929364726,2.5,1247.2,1247.0,11.27566782]
[1672929365143,3.2078,1247.3,1247.1,2.5]
[1672929365358,3.2078,1247.3,1247.1,3.69822359]
[1672929365570,2.5,1247.4,1247.1,3.69822359]
[1672929366622,2.5,1247.4,1247.1,5.4990785]
[1672929368203,2.5,1247.4,1247.2,1.19822359]
[1672929369464,2.5,1247.4,1247.1,5.4990785]
[1672929369885,3.2078,1247.3,1247.1,5.4990785]
[1672929370202,2.5,1247.2,1247.1,4.30085491]
[1672929370419,2.5,1247.4,1247.1,4.30085491]
[1672929370729,2.5,1247.4,1247.2,1.20086459]
[1672929371149,6.0937775,1247.4,1247.2,1.20086459]
[1672929371363,6.0937775,1247.4,1247.1,5.5017195]
[1672929371984,3.2078,1247.3,1247.2,1.20086459]
[1672929372195,3.2078,1247.3,1247.1,5.5017195]
[1672929372405,2.5,1247.2,1247.1,5.5017195]
[1672929373782,2.5,1247.2,1247.1,3.0017195]
[1672929374195,2.5,1247.2,1247.1,1.20086459]
[1672929374409,2.5,1247.2,1247.1,3.0017195]
[1672929375356,2.5,1247.2,1247.1,1.20086459]
[1672929375777,2.5,1247.2,1247.1,3.70086459]
[1672929376090,3.2078,1247.3,1247.1,3.70086459]
[1672929376291,2.5,1247.2,1247.1,3.0017195]
[1672929376503,2.5,1247.2,1247.1,5.5017195]
[1672929376931,2.5,1247.2,1247.1,3.0017195]
[1672929377142,2.5,1247.2,1247.1,1.20086459]
[1672929378926,2.5,1247.2,1247.1,3.0017195]
[1672929379133,2.5,1247.2,1247.1,1.20086459]
[1672929379553,2.5,1247.2,1247.1,3.70086459]
[1672929379767,3.2078,1247.3,1247.1,1.20086459]
[1672929380085,2.5,1247.2,1247.1,3.0017195]
[1672929380497,2.5,1247.2,1247.1,1.20086459]
[1672929380919,2.5,1247.2,1247.1,3.0017195]
[1672929381986,2.5,1247.2,1247.1,1.20086459]
[1672929382185,2.5,1247.2,1247.1,5.5017195]
[1672929382400,2.5,1247.2,1247.1,3.0017195]
[1672929382825,3.2078,1247.3,1247.1,3.0017195]
[1672929383346,3.2078,1247.3,1247.1,5.5017195]
[1672929384818,3.2078,1247.3,1247.1,3.0017195]
[1672929385029,2.5,1247.2,1247.1,3.0017195]
[1672929385442,3.2078,1247.3,1247.1,5.50184689]
[1672929385653,3.2078,1247.3,1247.2,1.20099198]
[1672929385858,3.2078,1247.3,1247.2,3.70099198]
[1672929386289,2.5,1247.4,1247.2,3.70099198]
[1672929386914,9.4829775,1247.5,1247.2,3.70099198]
[1672929387130,9.4829775,1247.5,1247.2,5.50184689]
[1672929387443,9.4829775,1247.5,1247.2,3.70099198]
[1672929387865,9.4829775,1247.5,1247.2,2.5]
[1672929388077,3.5937775,1247.4,1247.2,2.5]
[1672929388391,0.00413992,1247.2,1247.1,4.30085491]
[1672929388603,0.00413992,1247.2,1247.1,5.50197473]
[1672929388814,0.00413992,1247.2,1247.1,4.30085491]
[1672929389550,0.00413992,1247.2,1247.1,6.69746108]
[1672929392176,0.00413992,1247.2,1247.1,4.30085491]
[1672929392391,0.00413992,1247.2,1247.1,4.89660617]
[1672929393132,0.00413992,1247.2,1247.1,4.89197634]
[1672929395021,0.00413992,1247.2,1247.1,6.31329078]
[1672929395221,6.8015775,1247.5,1247.2,2.5]
[1672929395431,3.5937775,1247.6,1247.4,1.20134984]
[1672929395651,3.5937775,1247.6,1247.4,2.5]
[1672929395967,6.0937775,1247.6,1247.4,3.70134984]
[1672929397541,10.94999022,1247.7,1247.4,3.70134984]
[1672929397857,2.5,1247.6,1247.4,3.70134984]
[1672929398491,2.5,1247.6,1247.4,8.7111746]
[1672929400378,2.5,1247.6,1247.4,4.40914984]
[1672929401323,9.3015775,1247.7,1247.5,2.5]
[1672929401741,2.5,1247.6,1247.5,2.5]
[1672929401943,2.5,1247.6,1247.4,4.40914984]
[1672929402689,2.5,1247.6,1247.4,3.2078]
[1672929404795,2.5,1247.6,1247.3,3.70134984]
[1672929405953,2.5,1247.6,1247.3,5.5033746]
[1672929408788,2.5,1247.6,1247.3,3.70134984]
[1672929409417,2.5,1247.6,1247.3,5.5033746]
[1672929409627,9.3015775,1247.7,1247.3,13.5083746]
[1672929409940,5.7078,1247.7,1247.5,2.5]
[1672929410153,9.3015775,1247.7,1247.5,2.5]
[1672929410356,2.5,1247.6,1247.5,2.5]
[1672929410779,2.5,1247.6,1247.3,13.5083746]
[1672929411617,2.5,1247.6,1247.3,11.70634984]
[1672929413833,9.3015775,1247.7,1247.3,13.5083746]
[1672929414145,5.7078,1247.7,1247.4,1.20134984]
[1672929414355,5.7078,1247.7,1247.3,11.70634984]
[1672929414557,9.3015775,1247.7,1247.3,13.5083746]
[1672929414769,9.3015775,1247.7,1247.4,1.20134984]
[1672929414979,9.3015775,1247.7,1247.3,13.5083746]
[1672929417189,9.3015775,1247.7,1247.4,1.20134984]
[1672929417405,6.8015775,1247.9,1247.5,10.38774984]
[1672929417827,4.14841272,1248.0,1247.5,1.1814]
[1672929417828,3.2078,1247.7,1247.5,1.1814]
[1672929418029,3.2078,1247.7,1247.6,2.5]
[1672929419400,3.20482921,1247.7,1247.6,2.5]
[1672929424234,6.8015775,1247.7,1247.6,2.5]
[1672929424445,6.8015775,1247.9,1247.6,10.505]
[1672929424654,3.2078,1247.9,1247.6,14.91414984]
[1672929424860,3.2078,1247.9,1247.6,10.505]
[1672929425070,9.3015775,1247.9,1247.6,11.70634984]
[1672929425911,6.8015775,1247.9,1247.6,11.70634984]
[1672929426131,9.3015775,1247.9,1247.6,11.70634984]
[1672929426757,6.8015775,1247.9,1247.6,11.70634984]
[1672929426966,5.7078,1247.8,1247.6,11.70634984]
[1672929427172,3.2078,1247.8,1247.6,10.505]
[1672929427381,3.2078,1247.8,1247.6,11.70634984]
[1672929427595,6.0937775,1247.9,1247.6,11.70634984]
[1672929428129,3.5937775,1247.9,1247.6,11.70634984]
[1672929428337,10.94999022,1248.0,1247.6,11.70634984]
[1672929428861,2.5,1247.9,1247.6,11.70634984]
[1672929429060,6.0937775,1247.9,1247.6,11.70634984]
[1672929429276,2.5,1247.9,1247.6,11.70634984]
[1672929429484,3.5937775,1247.9,1247.6,11.70634984]
[1672929429703,10.94999022,1248.0,1247.6,11.70634984]
[1672929430224,2.5,1247.9,1247.6,11.70634984]
[1672929430435,6.8015775,1248.0,1247.6,11.70634984]
[1672929430647,9.3015775,1248.0,1247.6,13.5083746]
[1672929431385,9.3015775,1248.0,1247.7,1.20134984]
[1672929431585,9.3015775,1248.0,1247.8,10.505]
[1672929431798,6.8015775,1248.0,1247.9,1.5]
[1672929432005,9.3015775,1248.0,1247.9,1.5]
[1672929432744,6.8015775,1248.0,1247.9,1.5]
[1672929433793,9.3015775,1248.0,1247.9,1.5]
[1672929434003,9.3015775,1248.0,1247.8,10.505]
[1672929435793,6.8015775,1248.0,1247.9,2.5]
[1672929437783,6.8015775,1248.0,1247.8,10.505]
[1672929438000,9.3015775,1248.0,1247.8,10.505]
[1672929438214,9.3015775,1248.0,1247.7,8.005]
[1672929438525,9.3015775,1248.0,1247.6,4.88274984]
[1672929438526,13.44999022,1248.0,1247.6,11.70634984]
[1672929438730,3.2078,1247.8,1247.6,10.505]
[1672929438935,2.5,1247.7,1247.6,10.505]
[1672929439360,2.5,1247.7,1247.6,8.005]
[1672929439570,2.5,1247.7,1247.4,11.0083746]
[1672929439779,2.5,1247.7,1247.5,3.70134984]
[1672929440524,2.5,1247.7,1247.5,1.20134984]
[1672929440732,2.5,1247.7,1247.5,3.70134984]
[1672929441049,2.5,1247.7,1247.5,6.90914984]
[1672929441993,2.5,1247.7,1247.5,4.40914984]
[1672929442207,2.5,1247.7,1247.4,11.0083746]
[1672929442522,2.5,1247.7,1247.5,1.20134984]
[1672929443045,2.5,1247.7,1247.4,9.20634984]
[1672929443354,3.2078,1247.6,1247.4,9.20634984]
[1672929443565,3.2078,1247.6,1247.5,2.5]
[1672929443774,3.2078,1247.6,1247.4,2.5]
[1672929443992,2.5,1247.5,1247.4,2.5]
[1672929444204,2.5,1247.5,1247.4,3.70134984]
[1672929445353,2.5,1247.5,1247.4,1.20134984]
[1672929445780,2.5,1247.5,1247.4,3.70134984]
[1672929446404,2.5,1247.5,1247.4,1.20134984]
[1672929446621,2.5,1247.5,1247.4,3.70134984]
[1672929447148,2.5,1247.7,1247.4,3.70134984]
[1672929447460,2.5,1247.7,1247.4,13.5083746]
[1672929447985,2.5,1247.7,1247.4,11.70634984]
[1672929448403,2.5,1247.7,1247.4,13.5083746]
[1672929450082,3.2078,1247.6,1247.4,13.5083746]
[1672929450296,2.5,1247.5,1247.4,10.505]
[1672929450506,3.2078,1247.6,1247.4,10.505]
[1672929450711,6.8015775,1247.8,1247.5,3.6814]
[1672929451139,6.8015775,1247.8,1247.6,2.5]
[1672929451347,2.5,1247.7,1247.6,2.5]
[1672929452284,2.5,1247.7,1247.5,3.6814]
[1672929453668,6.8015775,1247.8,1247.5,11.6864]
[1672929453873,6.8015775,1247.8,1247.5,12.88774984]
[1672929454192,2.5,1247.7,1247.5,12.88774984]
[1672929455036,2.5,1247.7,1247.5,11.70634984]
[1672929456291,6.8015775,1247.8,1247.5,11.70634984]
[1672929456610,2.5,1247.7,1247.5,11.70634984]
[1672929459663,6.8015775,1247.8,1247.5,11.70634984]
[1672929461973,6.8015775,1247.8,1247.6,2.5]
[1672929470273,2.5,1247.7,1247.5,11.70634984]
[1672929471330,6.0937775,1247.7,1247.5,11.70634984]
[1672929471528,6.0937775,1247.7,1247.5,10.505]
[1672929471744,6.0937775,1247.7,1247.5,11.70634984]
[1672929476697,6.8015775,1247.7,1247.5,13.5083746]
[1672929476909,6.8015775,1247.7,1247.5,11.70634984]
[1672929477331,6.8015775,1247.7,1247.5,13.5083746]
[1672929480693,9.3015775,1247.7,1247.5,11.0083746]
[1672929484694,9.3015775,1247.7,1247.5,9.20634984]
[1672929484894,9.3015775,1247.7,1247.5,1.20134984]
[1672929485103,13.44999022,1247.7,1247.5,3.0033746]
[1672929485315,9.3015775,1247.7,1247.5,3.0033746]
[1672929485950,9.3015775,1247.7,1247.5,5.5033746]
[1672929487011,9.3015775,1247.7,1247.5,3.0033746]
[1672929488272,13.44999022,1247.7,1247.5,3.0033746]
[1672929488478,2.5,1247.6,1247.5,3.0033746]
[1672929488689,2.5,1247.6,1247.5,1.20134984]
[1672929490259,2.5,1247.6,1247.5,3.0033746]
[1672929490992,6.0937775,1247.6,1247.5,3.0033746]
[1672929491737,6.0937775,1247.6,1247.5,1.20134984]
[1672929493095,6.0937775,1247.6,1247.4,1.80202476]
[1672929493096,6.0937775,1247.6,1247.4,3.0033746]
[1672929493303,6.0937775,1247.6,1247.5,3.70134984]
[1672929493838,6.0937775,1247.6,1247.4,5.5033746]
[1672929494048,6.0937775,1247.6,1247.5,1.20134984]
[1672929494260,6.0937775,1247.6,1247.4,5.5033746]
[1672929494776,6.0937775,1247.6,1247.4,5.49626121]
[1672929496255,6.0937775,1247.6,1247.5,2.5]
[1672929497742,10.24219022,1247.6,1247.4,3.70134984]
[1672929498054,6.0937775,1247.6,1247.4,3.70134984]
[1672929499210,6.0937775,1247.6,1247.4,1.20134984]
[1672929499412,3.2078,1247.5,1247.3,11.70634984]
[1672929499616,2.5,1247.4,1247.3,11.70634984]
[1672929499832,2.5,1247.4,1247.3,10.505]
[1672929500784,3.2078,1247.5,1247.3,10.505]
[1672929501096,3.2078,1247.5,1247.4,3.7014619]
[1672929502150,3.2078,1247.5,1247.4,1.2014619]
[1672929502678,3.2078,1247.5,1247.3,11.7064619]
[1672929502878,3.2078,1247.5,1247.4,1.2014619]
[1672929503194,3.2078,1247.5,1247.4,3.7014619]
[1672929503824,3.2078,1247.5,1247.4,2.5]
[1672929504033,3.2078,1247.5,1247.4,3.7014619]
[1672929504243,3.2078,1247.5,1247.4,2.5]
[1672929504458,3.2078,1247.5,1247.4,3.7014619]
[1672929504884,3.2078,1247.5,1247.4,1.2014619]
[1672929505089,3.2078,1247.5,1247.3,11.7064619]
[1672929505726,3.2078,1247.5,1247.3,9.2064619]
[1672929506032,6.8015775,1247.5,1247.2,1.2014619]
[1672929506237,2.5,1247.4,1247.2,1.2014619]
[1672929506450,3.2078,1247.3,1247.1,1.2014619]
[1672929506870,2.5,1247.2,1247.1,1.2014619]
[1672929508244,2.5,1247.2,1247.0,3.7014619]
[1672929508451,2.5,1247.2,1247.1,2.5]
[1672929508876,2.5,1247.2,1247.0,3.7014619]
[1672929509717,2.5,1247.2,1247.1,1.2014619]
[1672929509925,2.5,1247.2,1247.0,1.2014619]
[1672929510131,2.5,1247.2,1247.1,2.5]
[1672929511083,3.2078,1247.3,1247.1,2.5]
[1672929511606,2.5,1247.2,1247.0,3.7014619]
[1672929512030,2.5,1247.2,1247.0,11.7064619]
[1672929512550,2.5,1247.2,1246.9,28.1644619]
[1672929512762,3.2078,1247.1,1246.9,8.005]
[1672929512976,3.2078,1247.1,1246.8,1.2014619]
[1672929513181,3.2078,1247.1,1246.7,18.1682]
[1672929513182,2.5,1247.0,1246.7,19.3696619]
[1672929513500,2.5,1247.0,1246.8,3.7014619]
[1672929514234,2.5,1247.0,1246.8,2.5]
[1672929514646,3.2078,1247.1,1246.8,2.5]
[1672929515283,3.2078,1247.1,1246.8,3.7014619]
[1672929516121,3.2078,1247.1,1246.8,2.5]
[1672929519069,3.2078,1247.1,1246.8,5.7078]
[1672929519276,3.2078,1247.1,1246.8,14.9142619]
[1672929519479,3.2078,1247.1,1246.8,13.7128]
[1672929522229,3.2078,1247.1,1246.8,14.9142619]
[1672929523598,3.2078,1247.1,1246.8,13.7128]
[1672929526014,3.2078,1247.1,1246.8,10.505]
[1672929526231,2.5,1247.0,1246.8,8.005]
[1672929527165,3.2078,1246.9,1246.8,8.005]
[1672929527382,3.2078,1246.9,1246.7,8.005]
[1672929528007,3.2078,1246.9,1246.8,2.5]
[1672929529796,3.2078,1246.9,1246.7,2.5]
[1672929533576,3.2078,1246.9,1246.7,10.505]
[1672929534213,3.2078,1246.9,1246.7,2.5]
[1672929535262,3.2078,1246.9,1246.6,3.7014619]
[1672929539469,2.5,1246.8,1246.6,3.7014619]
[1672929540193,3.2078,1246.9,1246.6,3.7014619]
[1672929540407,3.2078,1246.9,1246.6,11.7064619]
[1672929542096,3.2078,1246.9,1246.7,1.2014619]
[1672929542420,3.2078,1246.9,1246.8,2.5]
[1672929543994,2.5,1247.0,1246.8,2.5]
[1672929544209,2.5,1247.0,1246.8,3.7014619]
[1672929544623,3.2078,1247.1,1246.8,3.7014619]
[1672929544836,3.2078,1247.1,1246.8,11.7064619]
[1672929550192,6.8015775,1247.1,1246.8,11.7064619]
[1672929550514,3.2078,1247.1,1246.9,1.2014619]
[1672929550719,3.2078,1247.1,1247.0,2.5]
[1672929551562,2.5,1247.2,1247.0,2.5]
[1672929552399,3.5937775,1247.2,1247.0,10.505]
[1672929552607,6.8015775,1247.3,1247.0,11.7064619]
[1672929553137,2.5,1247.2,1247.0,11.7064619]
[1672929553982,6.8015775,1247.3,1247.0,11.7064619]
[1672929554193,9.3015775,1247.3,1247.0,11.7064619]
[1672929554817,9.3015775,1247.3,1247.0,13.50781584]
[1672929555343,2.5,1247.2,1247.0,13.50781584]
[1672929555764,2.5,1247.2,1247.0,11.7064619]
[1672929556926,2.5,1247.2,1247.0,1.2014619]
[1672929558185,2.5,1247.2,1247.0,3.7014619]
[1672929558398,5.7078,1247.3,1247.1,6.21061584]
[1672929558608,5.7078,1247.3,1247.1,6.9092619]
[1672929558822,5.7078,1247.3,1247.1,3.7014619]
[1672929559233,3.2078,1247.3,1247.1,3.7014619]
[1672929559444,10.94999022,1247.5,1247.1,8.71061584]
[1672929559756,2.5,1247.4,1247.1,8.71061584]
[1672929559977,2.5,1247.4,1247.1,6.9092619]
[1672929560390,2.5,1247.4,1247.1,3.7014619]
[1672929560607,3.2078,1247.3,1247.0,13.50781584]
[1672929560819,2.5,1247.2,1247.0,11.7064619]
[1672929561765,2.5,1247.2,1247.0,3.7014619]
[1672929562079,2.5,1247.2,1247.0,2.5]
[1672929562813,2.5,1247.2,1247.0,3.7014619]
[1672929563019,2.5,1247.2,1247.0,2.5]
[1672929563540,2.5,1247.2,1247.0,3.7014619]
[1672929564283,6.0937775,1247.4,1247.1,1.2014619]
[1672929564499,2.5,1247.4,1247.2,2.5]
[1672929565030,6.0937775,1247.4,1247.2,2.5]
[1672929565239,2.5,1247.4,1247.2,2.5]
[1672929565862,2.5,1247.4,1247.0,13.50781584]
[1672929568493,6.0937775,1247.4,1247.0,11.7064619]
[1672929568696,3.2078,1247.3,1247.0,11.7064619]
[1672929568906,2.5,1247.2,1247.0,11.7064619]
[1672929569964,2.5,1247.2,1246.9,2.89078119]
[1672929570165,2.5,1247.2,1247.0,10.505]
[1672929570383,2.5,1247.2,1247.1,10.505]
[1672929570908,2.5,1247.2,1247.0,2.5]
[1672929571119,3.2078,1247.1,1247.0,2.5]
[1672929574273,3.2078,1247.1,1246.9,12.30635394]
[1672929574590,3.2078,1247.1,1247.0,2.5]
[1672929574797,3.2078,1247.1,1246.9,10.505]
[1672929575953,2.5,1247.0,1246.9,8.005]
[1672929576374,2.5,1247.0,1246.9,10.505]
[1672929576585,2.5,1247.0,1246.8,9.80635394]
[1672929576798,3.2078,1246.9,1246.8,9.80635394]
[1672929579001,3.2078,1246.9,1246.8,8.005]
[1672929579205,3.2078,1246.9,1246.8,9.80635394]
[1672929579836,3.2078,1246.9,1246.8,8.005]
[1672929580050,3.2078,1246.9,1246.8,10.505]
[1672929580263,3.2078,1246.9,1246.8,9.80635394]
[1672929580897,3.2078,1246.9,1246.8,1.80135394]
[1672929581632,3.2078,1246.9,1246.8,4.30135394]
[1672929581947,3.2078,1246.9,1246.8,1.80135394]
[1672929582155,3.2078,1246.9,1246.8,4.30135394]
[1672929582366,3.2078,1246.9,1246.8,1.80135394]
[1672929584787,3.2078,1246.9,1246.8,4.30135394]
[1672929584994,3.2078,1246.9,1246.8,1.80135394]
[1672929587311,3.2078,1246.9,1246.7,12.20905363]
[1672929587518,3.2078,1246.9,1246.8,1.80135394]
[1672929587732,3.2078,1246.9,1246.8,2.5]
[1672929588361,3.2078,1246.9,1246.7,1.80135394]
[1672929588673,3.2078,1246.9,1246.7,9.80635394]
[1672929588890,1.5,1246.8,1246.7,1.80135394]
[1672929590031,1.5,1246.8,1246.7,4.30135394]
[1672929590670,1.5,1246.8,1246.7,1.80135394]
[1672929591087,1.5,1246.8,1246.6,12.20905363]
[1672929591827,1.5,1246.8,1246.7,1.80135394]
[1672929592040,1.5,1246.8,1246.7,2.5]
[1672929592770,1.5,1246.8,1246.6,9.80635394]
[1672929592978,1.5,1246.8,1246.7,2.5]
[1672929594240,3.2078,1246.9,1246.7,2.5]
[1672929594866,2.5,1246.8,1246.6,9.80635394]
[1672929595289,3.2078,1246.7,1246.6,9.80635394]
[1672929600447,3.2078,1246.7,1246.6,8.005]
[1672929600650,3.2078,1246.7,1246.5,15.75935394]
[1672929600857,3.2078,1246.7,1246.5,1.80135394]
[1672929601070,1.5,1246.6,1246.5,1.80135394]
[1672929601485,1.5,1246.6,1246.4,6.80135394]
[1672929601916,1.5,1246.6,1246.4,1.80135394]
[1672929603390,3.2078,1246.5,1246.4,1.80135394]
[1672929603703,3.2078,1246.5,1246.3,8.005]
[1672929603914,2.5,1246.4,1246.3,9.80635394]
[1672929604119,2.5,1246.4,1246.3,8.005]
[1672929604331,2.5,1246.4,1246.3,9.80635394]
[1672929604959,2.5,1246.4,1246.3,1.80135394]
[1672929605488,2.5,1246.4,1246.2,14.80635394]
[1672929606856,2.5,1246.4,1246.2,9.80635394]
[1672929607270,2.5,1246.4,1246.2,1.80135394]
[1672929607482,2.5,1246.4,1246.1,12.20905363]
[1672929607798,3.2078,1246.3,1246.1,1.80135394]
[1672929608115,2.5,1246.2,1246.1,1.80135394]
[1672929609589,2.5,1246.2,1246.0,34.37769669]
[1672929609800,2.5,1246.2,1246.0,20.41969669]
[1672929610011,3.2078,1246.3,1246.1,2.5]
[1672929612642,2.5,1246.4,1246.1,4.30135394]
[1672929614110,2.5,1246.4,1246.1,12.30635394]
[1672929615046,3.2078,1246.3,1246.1,8.005]
[1672929615471,3.2078,1246.3,1246.0,0.00284306]
[1672929615899,2.5,1246.2,1246.0,0.00284306]
[1672929616316,3.2078,1246.1,1245.4,6.5804]
[1672929616629,0.38072013,1245.4,1244.7,1.1814]
[1672929616837,0.38072013,1245.4,1244.7,8.005]
[1672929616838,3.2078,1244.8,1244.7,8.005]
[1672929617053,3.2078,1245.0,1244.7,8.005]
[1672929617263,8.005,1244.7,1244.5,6.79696004]
[1672929617467,3.2078,1244.8,1244.4,1.79696004]
[1672929617683,3.2078,1244.5,1244.0,1.79696004]
[1672929617998,3.2078,1244.5,1244.1,2.5]
[1672929617999,2.5,1244.4,1244.1,2.5]
[1672929618305,2.5,1244.4,1243.5,3.58480797]
[1672929618306,3.2078,1244.2,1243.7,1.79696004]
[1672929618516,2.5,1244.4,1243.6,1.1814]
[1672929618517,3.2078,1243.8,1243.6,1.1814]
[1672929618721,3.2078,1243.8,1243.5,0.00356099]
[1672929619149,11.17890404,1244.3,1243.8,0.31666522]
[1672929619150,3.2078,1244.3,1243.8,0.31666522]
[1672929619356,3.2078,1244.4,1243.9,1.1814]
[1672929619568,3.2078,1244.6,1244.0,3.2078]
[1672929619989,3.2078,1245.0,1244.4,8.2078]
[1672929620203,3.2078,1245.2,1244.6,8.2078]
[1672929620405,4.38757493,1245.6,1245.1,5.0]
[1672929620613,4.38757493,1245.8,1245.3,5.0]